bitfinex/quotes_BTCUSD_20241223
["timestamp","ask_amount","ask_price","bid_price","bid_amount"]
[1734942996253,0.007259,95251.0,95250.0,0.209973]
[1734942996458,0.007259,95251.0,95249.0,0.1013084]
[1734942996593,0.0804,95250.0,95243.0,0.15]
[1734942996780,0.209986,95244.0,95234.0,0.39883056]
[1734942996979,0.0804,95241.0,95234.0,0.18882356]
[1734942997242,0.0461,95242.0,95238.0,0.09429052]
[1734942997243,0.0804,95239.0,95238.0,0.09429052]
[1734942997464,0.08099678,95239.0,95238.0,0.09429052]
[1734942998003,0.08099678,95239.0,95236.0,0.02422864]
[1734942998406,0.0804,95239.0,95236.0,0.02422864]
[1734942999136,0.0814,95239.0,95236.0,0.02422864]
[1734942999859,0.0804,95239.0,95236.0,0.02422864]
[1734943000076,0.0824,95239.0,95236.0,0.02422864]
[1734943000264,0.0804,95239.0,95236.0,0.02422864]
[1734943000630,0.0814,95239.0,95236.0,0.02422864]
[1734943003189,0.001,95239.0,95236.0,0.02422864]
[1734943008034,0.001,95239.0,95237.0,0.210002]
[1734943008964,0.0814,95246.0,95237.0,0.210002]
[1734943009250,0.001,95239.0,95237.0,0.210002]
[1734943010036,0.001,95239.0,95237.0,0.3113104]
[1734943010210,0.001,95239.0,95238.0,0.2513084]
[1734943011919,0.001,95239.0,95238.0,0.2533084]
[1734943012095,0.0064302,95251.0,95239.0,0.15]
[1734943012422,0.0064302,95251.0,95248.0,0.209976]
[1734943013641,0.0084302,95251.0,95248.0,0.209976]
[1734943014178,0.0084302,95251.0,95250.0,0.209973]
[1734943014571,0.0094302,95251.0,95250.0,0.359973]
[1734943014911,0.0084302,95251.0,95250.0,0.359973]
[1734943015363,0.0064302,95251.0,95250.0,0.359973]
[1734943015714,0.0084302,95251.0,95250.0,0.4612814]
[1734943015916,0.0074302,95251.0,95250.0,0.5399814]
[1734943016060,0.0074302,95251.0,95250.0,0.55939547]
[1734943016387,0.0074302,95251.0,95250.0,0.56139547]
[1734943016703,0.0074302,95251.0,95250.0,0.55939547]
[1734943016853,0.0074302,95251.0,95250.0,0.56139547]
[1734943017057,0.0074302,95251.0,95250.0,0.55939547]
[1734943017251,0.0064302,95251.0,95250.0,0.55939547]
[1734943017672,0.0064302,95251.0,95250.0,0.56039547]
[1734943018116,0.0064302,95251.0,95250.0,0.55939547]
[1734943018448,0.0064302,95251.0,95250.0,0.56139547]
[1734943018650,0.0064302,95251.0,95250.0,0.56439547]
[1734943018982,0.0064302,95251.0,95250.0,0.55939547]
[1734943019222,0.0064302,95251.0,95250.0,0.56339547]
[1734943019540,0.0064302,95251.0,95250.0,0.55939547]
[1734943019828,0.0064302,95251.0,95250.0,0.56339547]
[1734943020232,0.0064302,95251.0,95250.0,0.48069547]
[1734943020435,0.0064302,95251.0,95250.0,0.48769547]
[1734943021056,0.0064302,95251.0,95250.0,0.48569547]
[1734943021274,0.0064302,95251.0,95250.0,0.48669547]
[1734943021682,0.0064302,95251.0,95250.0,0.48169547]
[1734943022112,0.0064302,95251.0,95250.0,0.48669547]
[1734943022283,0.0064302,95251.0,95250.0,0.48569547]
[1734943022527,0.0064302,95251.0,95250.0,0.48069547]
[1734943022696,0.0064302,95251.0,95250.0,0.48469547]
[1734943023140,0.0064302,95251.0,95250.0,0.61199547]
[1734943023345,0.0001712,95263.0,95252.0,0.1]
[1734943023553,0.0001712,95263.0,95262.0,0.438347]
[1734943023761,0.0001712,95263.0,95262.0,0.5396554]
[1734943023992,0.0001712,95263.0,95262.0,0.6396554]
[1734943024212,0.0001712,95263.0,95262.0,0.6866554]
[1734943025931,0.0011712,95263.0,95262.0,0.8186554]
[1734943026052,0.001,95263.0,95262.0,0.8186554]
[1734943026316,0.0001712,95264.0,95263.0,0.4494]
[1734943026317,2e-07,95264.0,95263.0,0.4494]
[1734943026476,0.0001712,95280.0,95279.0,0.459909]
[1734943026678,0.00070661,95280.0,95279.0,0.6376174]
[1734943027752,0.00070661,95280.0,95279.0,0.6406174]
[1734943028091,0.00070661,95280.0,95279.0,0.6376174]
[1734943028298,0.00070661,95280.0,95279.0,0.6854174]
[1734943028504,0.00070661,95280.0,95279.0,0.6884174]
[1734943028921,0.00070661,95280.0,95279.0,0.6944174]
[1734943029096,0.00170661,95280.0,95279.0,0.6944174]
[1734943029296,0.00070661,95280.0,95279.0,0.6884174]
[1734943029709,0.00170661,95280.0,95279.0,0.6954174]
[1734943030523,0.00170661,95280.0,95279.0,0.71306664]
[1734943031058,0.00170661,95280.0,95279.0,0.71606664]
[1734943031471,0.00070661,95280.0,95279.0,0.70606664]
[1734943031668,0.00170661,95280.0,95279.0,0.71906664]
[1734943032207,0.00170661,95280.0,95279.0,0.71506664]
[1734943032444,0.00170661,95280.0,95279.0,0.61506664]
[1734943032562,0.00070661,95280.0,95279.0,0.70606664]
[1734943033017,0.00170661,95280.0,95279.0,0.71506664]
[1734943033777,0.00170661,95280.0,95279.0,0.71906664]
[1734943034199,0.000171,95291.0,95290.0,0.209885]
[1734943034404,0.00033149,95291.0,95290.0,0.4611934]
[1734943034877,0.0814,95314.0,95313.0,0.209834]
[1734943035078,0.128,95321.0,95316.0,0.15]
[1734943035278,0.0828,95321.0,95317.0,0.31218344]
[1734943035405,0.0828,95329.0,95317.0,0.31218344]
[1734943036428,0.000171,95338.0,95318.0,0.17147123]
[1734943036429,0.079571,95338.0,95318.0,0.17147123]
[1734943036627,0.079571,95338.0,95318.0,0.27277963]
[1734943038087,0.289351,95338.0,95318.0,0.29171487]
[1734943039018,0.289351,95338.0,95318.0,0.29271487]
[1734943039356,0.289351,95338.0,95318.0,0.29171487]
[1734943039551,0.079571,95338.0,95318.0,0.29171487]
[1734943039874,0.079571,95338.0,95318.0,0.29271487]
[1734943040041,0.079571,95338.0,95318.0,0.29171487]
[1734943040396,0.079571,95338.0,95318.0,0.29371487]
[1734943040602,0.079571,95338.0,95318.0,0.29271487]
[1734943041248,0.079571,95338.0,95318.0,0.29171487]
[1734943041505,0.079571,95338.0,95318.0,0.29271487]
[1734943042120,0.079571,95338.0,95318.0,0.29371487]
[1734943042326,0.209787,95335.0,95318.0,0.29271487]
[1734943042714,0.079571,95338.0,95318.0,0.29471487]
[1734943043101,0.079571,95338.0,95318.0,0.29271487]
[1734943043305,0.079571,95338.0,95318.0,0.29471487]
[1734943043685,0.079571,95338.0,95318.0,0.29171487]
[1734943043880,0.079571,95338.0,95318.0,0.29371487]
[1734943044520,0.079571,95338.0,95318.0,0.29271487]
[1734943044849,0.079571,95338.0,95318.0,0.29371487]
[1734943045203,0.079571,95338.0,95318.0,0.29171487]
[1734943045555,0.079571,95338.0,95318.0,0.29371487]
[1734943045849,0.079571,95338.0,95318.0,0.29271487]
[1734943046357,0.079571,95338.0,95318.0,0.29471487]
[1734943046506,0.079571,95338.0,95318.0,0.29271487]
[1734943046719,0.079571,95338.0,95318.0,0.29471487]
[1734943047120,0.079571,95338.0,95318.0,0.29171487]
[1734943047327,0.079571,95338.0,95318.0,0.29271487]
[1734943047824,0.079571,95338.0,95318.0,0.29171487]
[1734943048284,0.079571,95338.0,95318.0,0.29371487]
[1734943048987,0.079571,95338.0,95318.0,0.29771487]
[1734943052044,0.000171,95338.0,95318.0,0.44471487]
[1734943052275,0.000171,95338.0,95318.0,0.52161487]
[1734943052421,0.000171,95338.0,95318.0,0.64461487]
[1734943052829,0.000171,95338.0,95318.0,0.62161487]
[1734943053192,0.000171,95338.0,95318.0,0.61761487]
[1734943053641,0.000171,95338.0,95318.0,0.62661487]
[1734943053843,0.000171,95338.0,95324.0,0.15]
[1734943054011,0.00033163,95334.0,95326.0,0.15]
[1734943054194,0.00033163,95334.0,95333.0,0.20979]
[1734943054396,0.00033163,95334.0,95333.0,0.4610984]
[1734943055445,0.00033163,95334.0,95333.0,0.4620984]
[1734943056907,0.00033163,95334.0,95333.0,0.4610984]
[1734943057154,0.00033163,95334.0,95333.0,0.4670984]
[1734943057828,0.00033163,95334.0,95333.0,0.4650984]
[1734943058036,0.00033163,95334.0,95333.0,0.4670984]
[1734943058797,0.00033163,95334.0,95333.0,0.48586467]
[1734943058992,0.00033163,95334.0,95333.0,0.50699535]
[1734943060050,0.00033163,95334.0,95333.0,0.60499535]
[1734943060247,0.00033163,95334.0,95333.0,0.68169535]
[1734943060472,0.00033163,95334.0,95333.0,0.68369535]
[1734943060592,0.00033163,95334.0,95333.0,0.68769535]
[1734943065495,0.00033163,95334.0,95333.0,0.58769535]
[1734943065690,0.00033163,95334.0,95333.0,0.50699535]
[1734943066681,0.00033163,95334.0,95333.0,0.50499535]
[1734943067285,0.00033163,95334.0,95333.0,0.50699535]
[1734943067700,0.00033163,95334.0,95333.0,0.50499535]
[1734943068029,0.00033163,95334.0,95333.0,0.60699535]
[1734943069442,0.00033163,95334.0,95333.0,0.50099535]
[1734943070028,0.00033163,95334.0,95333.0,0.50799535]
[1734943070225,0.00033163,95334.0,95333.0,0.60299535]
[1734943070466,0.00033163,95334.0,95333.0,0.50699535]
[1734943070822,0.00033163,95334.0,95333.0,0.60699535]
[1734943071154,0.00033163,95334.0,95333.0,0.60999535]
[1734943071596,0.00033163,95334.0,95333.0,0.50999535]
[1734943072614,0.00033163,95334.0,95333.0,0.50399535]
[1734943072815,0.00033163,95334.0,95333.0,0.50099535]
[1734943073007,0.00033163,95334.0,95333.0,0.50899535]
[1734943073653,0.00033163,95334.0,95333.0,0.50699535]
[1734943073939,0.00033163,95334.0,95333.0,0.50999535]
[1734943081480,0.00033163,95334.0,95333.0,0.60405953]
[1734943082255,0.00033163,95334.0,95333.0,0.65109162]
[1734943083242,0.00033163,95334.0,95333.0,0.50999535]
[1734943083441,0.00033163,95334.0,95333.0,0.15020535]
[1734943083845,0.00033163,95334.0,95333.0,0.14720535]
[1734943084419,0.00033163,95334.0,95333.0,0.14120535]
[1734943084942,0.00033163,95334.0,95333.0,0.29120535]
[1734943085570,0.00033163,95334.0,95333.0,0.29320535]
[1734943085770,0.00033163,95334.0,95333.0,0.29620535]
[1734943086031,0.00033163,95334.0,95333.0,0.29420535]
[1734943086543,0.08193163,95334.0,95333.0,0.01876627]
[1734943087038,0.08193163,95334.0,95323.0,0.0941188]
[1734943087247,0.08193163,95334.0,95324.0,0.15]
[1734943087656,0.08193163,95334.0,95326.0,0.15]
[1734943088674,0.08193163,95334.0,95329.0,0.15]
[1734943088856,0.08193163,95334.0,95330.0,0.1013084]
[1734943089065,0.08193163,95334.0,95333.0,0.15]
[1734943089208,0.08193163,95334.0,95333.0,0.2513084]
[1734943090855,0.00033163,95334.0,95333.0,0.2513084]
[1734943092962,0.00133163,95334.0,95333.0,0.2513084]
[1734943093193,0.00133163,95334.0,95333.0,0.2543084]
[1734943093428,0.00033163,95334.0,95333.0,0.2543084]
[1734943093813,0.00033163,95334.0,95333.0,0.27025509]
[1734943094332,0.00033163,95334.0,95333.0,0.27125509]
[1734943098357,0.000171,95338.0,95333.0,0.27125509]
[1734943098520,0.00932248,95346.0,95339.0,0.15]
[1734943098717,0.00132248,95346.0,95345.0,0.359764]
[1734943098919,0.00132248,95346.0,95345.0,0.4610724]
[1734943099830,0.00132248,95346.0,95345.0,0.60225061]
[1734943100032,0.00132248,95346.0,95345.0,0.60325061]
[1734943100232,0.00132248,95346.0,95345.0,0.60425061]
[1734943100494,0.00132248,95346.0,95345.0,0.60325061]
[1734943100708,0.00132248,95346.0,95345.0,0.71017415]
[1734943100913,0.06538533,95358.0,95348.0,0.1]
[1734943101122,0.00987625,95358.0,95357.0,0.4610464]
[1734943103159,0.00987625,95358.0,95357.0,0.4640464]
[1734943103581,0.00987625,95358.0,95357.0,0.4650464]
[1734943106311,0.00987625,95358.0,95357.0,0.48123167]
[1734943112178,0.01004745,95358.0,95357.0,0.48123167]
[1734943115100,0.01004745,95358.0,95357.0,0.02018527]
[1734943115303,0.05934423,95358.0,95357.0,0.004]
[1734943115505,0.13634423,95358.0,95357.0,0.004]
[1734943115884,0.13634423,95358.0,95351.0,0.04120723]
[1734943116088,0.00059678,95357.0,95351.0,0.2256603]
[1734943116286,0.13574745,95358.0,95351.0,0.2256603]
[1734943116466,0.13574745,95358.0,95351.0,0.0159103]
[1734943116669,0.13574745,95358.0,95349.0,0.209753]
[1734943117008,0.13574745,95358.0,95347.0,0.04120723]
[1734943117009,0.13574745,95358.0,95357.0,0.001]
[1734943117422,0.13574745,95358.0,95350.0,0.3110614]
[1734943117618,0.13674745,95358.0,95350.0,0.3110614]
[1734943118933,0.13674745,95358.0,95350.0,0.1013084]
[1734943119129,0.209738,95357.0,95350.0,0.1013084]
[1734943119482,0.209738,95357.0,95347.0,0.01563853]
[1734943119483,0.20975,95352.0,95347.0,0.01563853]
[1734943119688,0.287751,95351.0,95347.0,0.01563853]
[1734943120028,0.20977,95343.0,95331.0,0.209793]
[1734943120366,0.1266,95342.0,95333.0,0.20979]
[1734943120580,0.1266,95342.0,95334.0,0.1013084]
[1734943120715,0.1266,95342.0,95335.0,0.209786]
[1734943120912,0.1266,95342.0,95336.0,0.1013084]
[1734943121135,0.00059678,95341.0,95324.0,0.2257219]
[1734943121338,0.209788,95335.0,95325.0,0.2513084]
[1734943122363,0.209794,95332.0,95324.0,0.0159129]
[1734943122729,0.209799,95329.0,95324.0,0.0159129]
[1734943122920,0.209804,95327.0,95324.0,0.0159129]
[1734943123074,0.0808,95330.0,95324.0,0.0159129]
[1734943123281,0.00059678,95329.0,95324.0,0.0159129]
[1734943123504,0.0808,95330.0,95324.0,0.1659129]
[1734943123875,0.001,95329.0,95324.0,0.1659129]
[1734943124299,0.00159678,95329.0,95324.0,0.1659129]
[1734943124663,0.001,95329.0,95324.0,0.0159129]
[1734943126934,0.00159678,95329.0,95324.0,0.0159129]
[1734943129120,0.209801,95328.0,95324.0,0.0159129]
[1734943129478,0.209806,95326.0,95324.0,0.0159129]
[1734943129734,0.13029678,95325.0,95324.0,0.00016043]
[1734943131268,0.13829678,95325.0,95324.0,0.00116043]
[1734943137385,0.13829678,95325.0,95324.0,0.00124603]
[1734943145809,0.36260518,95325.0,95324.0,0.00124603]
[1734943146042,0.39458343,95325.0,95324.0,0.00124603]
[1734943146744,0.39158343,95325.0,95324.0,0.00124603]
[1734943146876,0.39158343,95325.0,95324.0,0.00024603]
[1734943146877,0.39058343,95325.0,95324.0,0.00024603]
[1734943147251,0.29058343,95325.0,95324.0,0.00024603]
[1734943147448,0.29658343,95325.0,95324.0,0.00124603]
[1734943147640,0.29659842,95325.0,95324.0,0.00124603]
[1734943147861,0.2640084,95325.0,95324.0,0.00124603]
[1734943148184,0.1357,95325.0,95324.0,0.00124603]
[1734943148388,0.13629678,95325.0,95324.0,0.00124603]
[1734943148583,0.14029678,95325.0,95324.0,0.00124603]
[1734943150073,0.17292162,95325.0,95324.0,0.00124603]
[1734943150277,0.14029678,95325.0,95324.0,0.00124603]
[1734943150500,0.172936,95325.0,95324.0,0.00124603]
[1734943150700,0.14029678,95325.0,95324.0,0.00124603]
[1734943151237,0.17294472,95325.0,95324.0,0.00124603]
[1734943153716,0.12514472,95325.0,95324.0,0.00124603]
[1734943155841,0.12514472,95325.0,95319.0,8.55e-05]
[1734943155842,0.12514472,95325.0,95289.0,0.15]
[1734943156037,0.03324472,95324.0,95294.0,0.1023576]
[1734943156238,0.24245994,95323.0,95302.0,0.02137644]
[1734943156449,0.03324472,95322.0,95304.0,0.209854]
[1734943156624,0.209825,95318.0,95306.0,0.20985]
[1734943156828,0.00059678,95317.0,95306.0,0.20985]
[1734943158573,0.00359678,95317.0,95306.0,0.20985]
[1734943158717,0.00859678,95317.0,95306.0,0.20985]
[1734943159144,0.21842378,95317.0,95305.0,0.1013084]
[1734943159462,0.21842378,95317.0,95306.0,0.20985]
[1734943160350,0.21042378,95317.0,95306.0,0.20985]
[1734943160685,0.21942378,95317.0,95306.0,0.20985]
[1734943161073,0.21642378,95317.0,95306.0,0.21085]
[1734943161272,0.22242378,95317.0,95306.0,0.21085]
[1734943161607,0.22542378,95317.0,95306.0,0.21085]
[1734943161808,0.22542378,95317.0,95306.0,0.13785]
[1734943162125,0.22542378,95317.0,95306.0,0.001]
[1734943162774,0.22542378,95317.0,95306.0,0.21085]
[1734943164057,0.209833,95314.0,95306.0,0.001]
[1734943164288,0.21043078,95313.0,95306.0,0.001]
[1734943165005,0.21043078,95313.0,95305.0,0.11944131]
[1734943165210,0.00059678,95313.0,95305.0,0.11944131]
[1734943165537,0.006,95314.0,95306.0,0.20985]
[1734943165738,0.004,95314.0,95306.0,0.20985]
[1734943165868,0.004,95314.0,95305.0,0.11944131]
[1734943166075,0.213834,95314.0,95305.0,0.11944131]
[1734943166329,0.00059678,95313.0,95305.0,0.11944131]
[1734943166550,0.00259678,95313.0,95305.0,0.11944131]
[1734943166981,0.00659678,95313.0,95305.0,0.11944131]
[1734943167252,0.002,95313.0,95310.0,0.209841]
[1734943167483,0.002,95313.0,95311.0,0.1013084]
[1734943167684,0.006,95313.0,95311.0,0.1013084]
[1734943167820,0.004,95313.0,95311.0,0.1013084]
[1734943168443,0.00059678,95324.0,95311.0,0.1013084]
[1734943168621,0.00059678,95324.0,95312.0,0.209837]
[1734943168839,0.002,95313.0,95312.0,0.209837]
[1734943169362,0.00059678,95324.0,95312.0,0.3111454]
[1734943169568,0.00459678,95324.0,95312.0,0.3111454]
[1734943169872,0.00459678,95324.0,95312.0,0.33170254]
[1734943170301,0.004,95324.0,95312.0,0.12186554]
[1734943170488,0.004,95313.0,95312.0,0.02055714]
[1734943170667,0.004,95324.0,95312.0,0.12186554]
[1734943170870,0.00033148,95325.0,95312.0,0.12186554]
[1734943171194,0.008,95324.0,95314.0,0.209832]
[1734943171391,0.00033148,95325.0,95314.0,0.209832]
[1734943171392,0.00033148,95325.0,95318.0,0.209822]
[1734943171978,0.00333148,95325.0,95318.0,0.209822]
[1734943172451,0.006,95324.0,95318.0,0.209822]
[1734943173674,0.006,95324.0,95322.0,0.083]
[1734943173881,0.00333148,95325.0,95322.0,0.083]
[1734943174123,0.00333148,95325.0,95323.0,0.15]
[1734943174308,0.00333148,95325.0,95323.0,0.359812]
[1734943174309,0.00533148,95325.0,95323.0,0.359812]
[1734943174486,0.00033148,95325.0,95323.0,0.359812]
[1734943174690,0.002,95324.0,95323.0,0.359812]
[1734943174904,0.006,95324.0,95323.0,0.359812]
[1734943175171,0.00033148,95325.0,95323.0,0.359812]
[1734943175627,0.00633148,95325.0,95323.0,0.359812]
[1734943175844,0.00233148,95325.0,95323.0,0.359812]
[1734943177063,0.00033148,95325.0,95323.0,0.359812]
[1734943177496,0.002,95324.0,95323.0,0.359812]
[1734943177732,0.00033148,95325.0,95323.0,0.359812]
[1734943177948,0.00033148,95325.0,95323.0,0.37802744]
[1734943177949,0.00133148,95325.0,95323.0,0.37802744]
[1734943178314,0.00033148,95325.0,95323.0,0.37802744]
[1734943178735,0.00033148,95325.0,95323.0,0.37902744]
[1734943178953,0.00033148,95325.0,95323.0,0.37802744]
[1734943181180,0.00033148,95325.0,95324.0,0.1013084]
[1734943181754,0.00033148,95325.0,95324.0,0.10235735]
[1734943182554,0.00033148,95325.0,95324.0,0.10435735]
[1734943183403,0.00033148,95325.0,95324.0,0.10535735]
[1734943191936,0.00033148,95325.0,95324.0,0.003]
[1734943192640,0.00033148,95325.0,95324.0,0.002]
[1734943193105,0.00033148,95325.0,95323.0,0.01821544]
[1734943193438,0.00033148,95325.0,95324.0,0.001]
[1734943194741,0.00033148,95325.0,95321.0,0.2330597]
[1734943194947,0.00033148,95325.0,95323.0,0.210812]
[1734943195363,0.00033148,95325.0,95323.0,0.209812]
[1734943195566,0.00033148,95325.0,95324.0,0.001]
[1734943196100,0.00033148,95325.0,95323.0,0.209812]
[1734943196330,0.00033148,95325.0,95322.0,0.1013084]
[1734943196545,0.00033148,95325.0,95323.0,0.001]
[1734943197550,0.00033148,95325.0,95323.0,0.210812]
[1734943197927,0.00033148,95325.0,95323.0,0.209812]
[1734943198131,0.00033148,95325.0,95324.0,0.001]
[1734943198471,0.00033148,95325.0,95323.0,0.209812]
[1734943198812,0.00033148,95325.0,95323.0,0.210812]
[1734943199014,0.00033148,95325.0,95323.0,0.209812]
[1734943199450,0.00033148,95325.0,95324.0,0.001]
[1734943199645,0.00033148,95325.0,95323.0,0.209812]
[1734943201117,0.00033148,95325.0,95323.0,0.210812]
[1734943203400,0.00033148,95325.0,95324.0,0.1013084]
[1734943204871,0.00033148,95325.0,95324.0,0.10235735]
[1734943205040,0.00033148,95325.0,95324.0,0.10335735]
[1734943209532,0.00033148,95325.0,95324.0,0.10831735]
[1734943209733,0.00033148,95325.0,95324.0,0.20232377]
[1734943210426,0.00033148,95325.0,95324.0,0.40152377]
[1734943210636,0.00033148,95325.0,95324.0,0.3064684]
[1734943211818,0.00033148,95325.0,95324.0,0.3861684]
[1734943212024,0.00033148,95325.0,95324.0,0.3851684]
[1734943212241,0.00033148,95325.0,95324.0,0.3871684]
[1734943212716,0.00033148,95325.0,95324.0,0.3841684]
[1734943212853,0.00133148,95325.0,95324.0,0.67518768]
[1734943213781,0.00133148,95325.0,95324.0,0.3931684]
[1734943220591,0.0001712,95355.0,95328.0,0.1]
[1734943220761,0.00033157,95355.0,95354.0,0.209744]
[1734943220965,0.00033157,95355.0,95354.0,0.3110524]
[1734943221682,0.00333157,95355.0,95354.0,0.3110524]
[1734943222168,0.00033157,95355.0,95354.0,0.3110524]
[1734943222471,0.00233157,95355.0,95354.0,0.3110524]
[1734943222770,0.00033157,95355.0,95354.0,0.3110524]
[1734943223026,0.00233157,95355.0,95354.0,0.3110524]
[1734943223247,0.00033157,95355.0,95354.0,0.3110524]
[1734943223651,0.00133157,95355.0,95354.0,0.3110524]
[1734943224032,0.00033157,95355.0,95354.0,0.3110524]
[1734943224408,0.00033157,95355.0,95354.0,0.3120524]
[1734943224617,0.00033157,95355.0,95354.0,0.3140524]
[1734943225160,0.00033157,95355.0,95354.0,0.33455093]
[1734943226423,0.00033157,95355.0,95354.0,0.36389157]
[1734943229965,0.00033157,95355.0,95354.0,0.36384489]
[1734943242145,0.00033157,95355.0,95354.0,0.51384489]
[1734943243308,0.00033157,95355.0,95354.0,0.51393049]
[1734943252011,0.00033157,95355.0,95354.0,0.20292477]
[1734943252212,0.29257357,95355.0,95354.0,0.0030856]
[1734943252825,0.37288052,95355.0,95354.0,0.0020856]
[1734943253023,0.37288052,95355.0,95354.0,8.56e-05]
[1734943253659,0.47418892,95355.0,95354.0,8.56e-05]
[1734943253993,0.47718892,95355.0,95354.0,8.56e-05]
[1734943255211,0.47418892,95355.0,95354.0,8.56e-05]
[1734943255418,0.57112708,95355.0,95354.0,8.56e-05]
[1734943255619,0.57712708,95355.0,95354.0,0.0010856]
[1734943255824,0.1292,95354.0,95321.0,0.10886917]
[1734943255980,0.0461,95332.0,95322.0,0.1013084]
[1734943256180,0.00059678,95331.0,95322.0,0.1013084]
[1734943256408,0.209797,95330.0,95322.0,0.1013084]
[1734943256616,0.209813,95323.0,95321.0,0.02497532]
[1734943256811,0.0831,95321.0,95302.0,0.30412254]
[1734943256972,0.209826,95317.0,95302.0,0.30412254]
[1734943257176,0.209826,95317.0,95298.0,0.209867]
[1734943257177,0.20983,95315.0,95301.0,0.11489128]
[1734943257402,0.04669678,95314.0,95304.0,0.02521744]
[1734943258068,0.04680884,95314.0,95304.0,0.02521744]
[1734943259245,0.05180884,95314.0,95304.0,0.02521744]
[1734943259838,0.05380884,95314.0,95304.0,0.02521744]
[1734943260034,0.13690884,95314.0,95304.0,0.02521744]
[1734943260639,0.13690884,95314.0,95304.0,8.56e-05]
[1734943264723,0.13490884,95314.0,95304.0,8.56e-05]
[1734943264876,0.13690884,95314.0,95304.0,8.56e-05]
[1734943265092,0.13190884,95314.0,95304.0,8.56e-05]
[1734943265271,0.13490884,95314.0,95304.0,8.56e-05]
[1734943265676,0.12990884,95314.0,95304.0,8.56e-05]
[1734943265900,0.13390884,95314.0,95304.0,8.56e-05]
[1734943266250,0.13590884,95314.0,95304.0,8.56e-05]
[1734943271472,0.13531206,95314.0,95304.0,8.56e-05]
[1734943271667,0.36021724,95314.0,95304.0,8.56e-05]
[1734943271916,0.35962046,95314.0,95304.0,8.56e-05]
[1734943273165,0.39172591,95314.0,95304.0,8.56e-05]
[1734943273361,0.38772591,95314.0,95304.0,8.56e-05]
[1734943273949,0.35562046,95314.0,95304.0,8.56e-05]
[1734943274155,0.35362046,95314.0,95304.0,8.56e-05]
[1734943274357,0.35562046,95314.0,95304.0,8.56e-05]
[1734943274690,0.45962046,95314.0,95304.0,8.56e-05]
[1734943274892,0.70892886,95314.0,95304.0,8.56e-05]
[1734943275102,0.537652,95305.0,95304.0,8.56e-05]
[1734943275307,0.6619604,95305.0,95304.0,8.56e-05]
[1734943275523,0.2,95294.0,95291.0,8.55e-05]
[1734943275730,0.665681,95292.0,95291.0,8.55e-05]
[1734943275931,0.7669894,95292.0,95291.0,8.55e-05]
[1734943276194,0.209953,95259.0,95243.0,8.56e-05]
[1734943276602,0.309953,95259.0,95243.0,8.56e-05]
[1734943277015,0.309953,95259.0,95246.0,0.03103495]
[1734943277221,0.309953,95259.0,95243.0,8.56e-05]
[1734943277429,0.4112614,95259.0,95243.0,8.56e-05]
[1734943277635,0.4112614,95259.0,95258.0,0.00062101]
[1734943278361,0.4122614,95259.0,95258.0,0.00062101]
[1734943278775,0.4202614,95259.0,95258.0,0.00162101]
[1734943278976,0.3252614,95259.0,95258.0,0.00162101]
[1734943279177,0.4252614,95259.0,95258.0,0.00162101]
[1734943280091,0.5252614,95259.0,95258.0,0.00162101]
[1734943280318,0.6752614,95259.0,95258.0,0.00162101]
[1734943280933,0.6982614,95259.0,95258.0,0.00162101]
[1734943281087,0.7750614,95259.0,95258.0,0.00162101]
[1734943281918,0.1,95250.0,95228.0,4.901e-05]
[1734943282116,0.209987,95244.0,95240.0,0.00016028]
[1734943282321,0.209991,95242.0,95240.0,0.00016028]
[1734943282535,0.00059678,95241.0,95240.0,0.00016028]
[1734943283366,0.20999,95243.0,95240.0,0.00016028]
[1734943283569,0.209993,95241.0,95240.0,0.00016028]
[1734943284810,0.213993,95241.0,95240.0,0.00016028]
[1734943285014,0.209993,95241.0,95240.0,0.00016028]
[1734943285215,0.002,95241.0,95240.0,0.00016028]
[1734943285415,0.008,95241.0,95240.0,0.00016028]
[1734943285615,0.002,95241.0,95240.0,0.00016028]
[1734943285823,0.002,95241.0,95222.0,0.24192316]
[1734943286017,0.00059678,95240.0,95224.0,0.00016049]
[1734943286641,0.00059678,95240.0,95225.0,0.210028]
[1734943287409,0.209998,95239.0,95224.0,0.00016049]
[1734943287648,0.210002,95237.0,95224.0,0.00016049]
[1734943287838,0.210006,95235.0,95224.0,0.00016049]
[1734943288045,0.00059678,95234.0,95224.0,0.00016049]
[1734943288404,0.00059678,95234.0,95225.0,0.001]
[1734943288606,0.210011,95233.0,95225.0,0.001]
[1734943288830,0.00059678,95232.0,95224.0,0.00016049]
[1734943289038,0.210015,95231.0,95224.0,0.00016049]
[1734943289234,0.00059678,95230.0,95224.0,0.00016049]
[1734943289434,0.00059678,95234.0,95224.0,0.00016049]
[1734943289636,0.00059678,95233.0,95224.0,0.00016049]
[1734943290031,0.00059678,95233.0,95224.0,0.00024609]
[1734943290599,0.210013,95232.0,95224.0,0.00024609]
[1734943290833,0.210025,95227.0,95224.0,0.00024609]
[1734943291042,0.210028,95225.0,95224.0,0.00024609]
[1734943292028,0.3113364,95225.0,95224.0,0.00024609]
[1734943292229,0.212025,95227.0,95224.0,0.00024609]
[1734943292407,0.210028,95225.0,95224.0,0.00024609]
[1734943292615,0.211028,95225.0,95224.0,0.00024609]
[1734943293473,0.212028,95225.0,95224.0,0.00024609]
[1734943293979,0.211028,95225.0,95224.0,0.00024609]
[1734943294336,0.214028,95225.0,95224.0,0.00024609]
[1734943294741,0.211028,95225.0,95224.0,0.00024609]
[1734943295173,0.210028,95225.0,95224.0,0.00024609]
[1734943295373,0.217028,95225.0,95224.0,0.00124609]
[1734943295575,0.219028,95225.0,95224.0,0.00124609]
[1734943295775,0.212028,95225.0,95208.0,8.56e-05]
[1734943295976,0.00059678,95224.0,95212.0,9.552e-05]
[1734943296141,0.210033,95223.0,95212.0,9.552e-05]
[1734943296338,0.00059678,95222.0,95212.0,9.552e-05]
[1734943297140,0.210037,95221.0,95212.0,9.552e-05]
[1734943297340,0.00059678,95220.0,95212.0,9.552e-05]
[1734943298321,0.210042,95219.0,95212.0,9.552e-05]
[1734943298484,0.00059678,95218.0,95212.0,0.03223291]
[1734943298689,0.00059678,95218.0,95212.0,9.552e-05]
[1734943299724,0.00259678,95218.0,95212.0,9.552e-05]
[1734943301104,0.21264078,95218.0,95212.0,9.552e-05]
[1734943301308,0.21364078,95218.0,95212.0,9.552e-05]
[1734943301722,0.210053,95215.0,95212.0,9.552e-05]
[1734943301921,0.00059678,95214.0,95212.0,0.00018122]
[1734943302128,0.210055,95213.0,95212.0,0.03219534]
[1734943302331,0.210055,95213.0,95212.0,0.00018122]
[1734943302526,0.0826,95217.0,95212.0,0.00018122]
[1734943302527,0.292646,95217.0,95212.0,0.00018122]
[1734943302723,0.00059678,95216.0,95212.0,0.00018122]
[1734943302926,0.21205,95215.0,95212.0,0.00018122]